bitfinex/quotes_ETHUSD_20210401
["timestamp","ask_amount","ask_price","bid_price","bid_amount"]
[1617241601192,5.34977349,1931.7,1931.6,53.25389256]
[1617241601593,4.57813927,1931.7,1931.6,53.25389256]
[1617241602194,2.72993927,1931.7,1931.6,53.25389256]
[1617241602415,2.72993927,1931.7,1931.6,37.20389256]
[1617241604618,2.72993927,1931.7,1931.6,36.79389256]
[1617241605073,0.88563927,1931.7,1931.6,36.79389256]
[1617241606273,0.88563927,1931.7,1931.6,35.59389256]
[1617241606475,4.43563927,1931.7,1931.6,27.31389256]
[1617241607274,4.43563927,1931.7,1931.6,27.39309572]
[1617241607474,4.43563927,1931.7,1931.6,35.59389256]
[1617241608110,2.59823927,1931.7,1931.6,35.59389256]
[1617241608310,2.59823927,1931.7,1931.6,38.16649256]
[1617241609710,2.59823927,1931.7,1931.6,37.31949256]
[1617241610113,2.59823927,1931.7,1931.6,30.26979572]
[1617241610310,2.59823927,1931.7,1931.6,38.47059256]
[1617241611115,0.75323927,1931.7,1931.6,38.47059256]
[1617241612114,4.30323927,1931.7,1931.6,30.26979572]
[1617241612315,4.30323927,1931.7,1931.6,37.36599256]
[1617241612921,4.30323927,1931.7,1931.6,35.59389256]
[1617241614121,2.46313927,1931.7,1931.6,35.59389256]
[1617241617241,4.17053927,1931.7,1931.6,35.59389256]
[1617241618068,4.17053927,1931.7,1931.6,36.34019256]
[1617241618468,4.17053927,1931.7,1931.6,37.21369256]
[1617241619470,4.17053927,1931.7,1931.6,37.59369256]
[1617241620270,2.32433927,1931.7,1931.6,37.59369256]
[1617241622495,5.87433927,1931.7,1931.6,37.59369256]
[1617241623197,4.03743927,1931.7,1931.6,37.59369256]
[1617241626266,2.19803927,1931.7,1931.6,37.59369256]
[1617241627266,2.19803927,1931.7,1931.6,38.79369256]
[1617241627467,2.19803927,1931.7,1931.6,38.51369256]
[1617241627667,5.74803927,1931.7,1931.6,38.81469256]
[1617241629271,3.90433927,1931.7,1931.6,38.81469256]
[1617241631192,3.90433927,1931.7,1931.6,37.19489256]
[1617241632193,2.06213927,1931.7,1931.6,42.79489256]
[1617241632392,3.55,1932.1,1931.8,3.8781]
[1617241632591,3.55,1932.1,1931.9,4.2881]
[1617241632792,7.1,1932.1,1932.0,5.01]
[1617241633394,7.1,1932.1,1932.0,12.76619]
[1617241633594,7.1,1932.1,1932.0,16.56619]
[1617241633822,7.1,1932.1,1932.0,24.76698684]
[1617241634221,7.26230848,1932.1,1932.0,24.76698684]
[1617241635222,5.42240848,1932.1,1932.0,25.05398684]
[1617241635422,5.42240848,1932.1,1932.0,25.44398684]
[1617241638045,8.97240848,1932.1,1932.0,25.44398684]
[1617241638246,7.13200848,1932.1,1932.0,25.44398684]
[1617241639271,7.13200848,1932.1,1932.0,25.05398684]
[1617241641269,5.29410848,1932.1,1932.0,25.05398684]
[1617241642114,5.29410848,1932.1,1932.0,26.85678684]
[1617241643113,8.84410848,1932.1,1932.0,26.85678684]
[1617241644321,7.00430848,1932.1,1932.0,26.85678684]
[1617241644522,7.00430848,1932.1,1932.0,20.93928684]
[1617241644720,7.00430848,1932.1,1932.0,20.04398684]
[1617241645322,7.00430848,1932.1,1932.0,11.84319]
[1617241645522,7.00430848,1932.1,1932.0,12.79459]
[1617241645723,7.00430848,1932.1,1932.0,20.99538684]
[1617241646322,7.00430848,1932.1,1932.0,22.02043328]
[1617241646521,7.00430848,1932.1,1932.0,30.02043328]
[1617241646722,7.00430848,1932.1,1932.0,20.50759]
[1617241646948,7.00430848,1932.1,1932.0,12.78759]
[1617241647148,7.00430848,1932.1,1932.0,11.83619]
[1617241647348,5.16680848,1932.1,1932.0,11.83619]
[1617241648346,6.64835418,1932.1,1932.0,11.83619]
[1617241650373,4.78175418,1932.1,1932.0,11.83619]
[1617241653398,2.94305418,1932.1,1932.0,11.83619]
[1617241653600,6.49305418,1932.1,1932.0,11.83619]
[1617241653805,6.49305418,1932.1,1932.0,13.61810524]
[1617241653999,6.49305418,1932.1,1932.0,9.81810524]
[1617241654203,6.49305418,1932.1,1932.0,17.81810524]
[1617241656233,6.49305418,1932.1,1932.0,9.53810524]
[1617241656434,4.65235418,1932.1,1932.0,8.03619]
[1617241657651,4.65235418,1932.1,1932.0,16.03619]
[1617241658254,4.65235418,1932.1,1932.0,19.65619]
[1617241658856,8.20235418,1932.1,1932.0,19.65619]
[1617241659456,6.35495418,1932.1,1932.0,19.65619]
[1617241660078,6.35495418,1932.1,1932.0,11.37619]
[1617241660275,6.35495418,1932.1,1932.0,7.75619]
[1617241661275,6.35495418,1932.1,1932.0,8.03619]
[1617241661675,6.35495418,1932.1,1932.0,16.03619]
[1617241661875,6.35495418,1932.1,1932.0,15.75619]
[1617241662276,6.73495418,1932.1,1932.0,15.75619]
[1617241662478,4.89215418,1932.1,1932.0,15.75619]
[1617241663097,4.89215418,1932.1,1932.0,7.75619]
[1617241663898,8.44215418,1932.1,1932.0,7.75619]
[1617241664500,8.44215418,1932.1,1932.0,15.75619]
[1617241665323,8.44215418,1932.1,1932.0,19.19619]
[1617241665523,6.22245418,1932.1,1932.0,19.19619]
[1617241665923,6.63245418,1932.1,1932.0,19.19619]
[1617241666525,6.63245418,1932.1,1932.0,15.75619]
[1617241666925,6.22245418,1932.1,1932.0,15.75619]
[1617241667124,6.22245418,1932.1,1932.0,15.95896746]
[1617241668346,6.62245418,1932.1,1932.0,15.95896746]
[1617241668546,4.38125418,1932.1,1932.0,18.65896746]
[1617241669148,7.93125418,1932.1,1932.0,18.65896746]
[1617241671396,6.08925418,1932.1,1932.0,18.65896746]
[1617241674401,7.80125418,1932.1,1932.0,18.65896746]
[1617241677524,5.96375418,1932.1,1932.0,19.31896746]
[1617241677724,5.96375418,1932.1,1932.0,19.03896746]
[1617241678124,5.96375418,1932.1,1932.0,18.65896746]
[1617241678751,5.96375418,1932.1,1932.0,18.93896746]
[1617241678950,5.96375418,1932.1,1932.0,18.65896746]
[1617241679750,9.51375418,1932.1,1932.0,18.65896746]
[1617241680551,7.67045418,1932.1,1932.0,18.65896746]
[1617241683187,7.67045418,1932.1,1932.0,18.93896746]
[1617241683586,5.81665418,1932.1,1932.0,18.93896746]
[1617241683806,5.81665418,1932.1,1932.0,19.32896746]
[1617241685004,9.36665418,1932.1,1932.0,18.93896746]
[1617241686651,7.52835418,1932.1,1932.0,18.93896746]
[1617241688253,7.52835418,1932.1,1932.0,10.65896746]
[1617241688452,7.52835418,1932.1,1932.0,10.93896746]
[1617241689658,5.68525418,1932.1,1932.0,18.93896746]
[1617241690257,9.23525418,1932.1,1932.0,18.93896746]
[1617241692581,7.34255418,1932.1,1932.0,18.93896746]
[1617241693481,7.34255418,1932.1,1932.0,18.65896746]
[1617241694806,7.34255418,1932.1,1932.0,18.93896746]
[1617241695506,10.89255418,1932.1,1932.0,18.93896746]
[1617241695706,9.03205418,1932.1,1932.0,18.93896746]
[1617241697032,9.03205418,1932.1,1932.0,10.65896746]
[1617241697232,9.03205418,1932.1,1932.0,7.95896746]
[1617241698833,7.18685418,1932.1,1932.0,7.95896746]
[1617241699234,7.18685418,1932.1,1932.0,15.95896746]
[1617241700458,7.18685418,1932.1,1932.0,7.95896746]
[1617241700656,10.73685418,1932.1,1932.0,7.95896746]
[1617241700858,11.12685418,1932.1,1932.0,7.95896746]
[1617241701056,11.28916266,1932.1,1932.0,7.95896746]
[1617241701656,10.89916266,1932.1,1932.0,7.95896746]
[1617241701858,9.05836266,1932.1,1932.0,7.95896746]
[1617241704814,10.41527134,1932.1,1932.0,7.95896746]
[1617241705218,10.41527134,1932.1,1932.0,0.20277746]
[1617241705219,19.44357134,1932.1,1932.0,0.20277746]
[1617241705417,20.64357134,1932.1,1932.0,0.20277746]
[1617241705617,21.04357134,1932.1,1932.0,0.20277746]
[1617241705818,24.59357134,1932.1,1932.0,0.20277746]
[1617241706818,24.59357134,1932.1,1931.8,5.01]
[1617241706819,18.04,1931.9,1931.8,5.01]
[1617241707019,19.5,1931.9,1931.8,5.01]
[1617241707445,3.34160868,1931.8,1931.4,7.76133]
[1617241707645,0.14,1931.7,1931.5,1.66179411]
[1617241707844,0.14,1931.7,1931.5,1.59179411]
[1617241707845,9.6831,1931.7,1931.5,1.59179411]
[1617241708045,9.6831,1931.7,1931.6,1.66179411]
[1617241708246,9.6831,1931.7,1931.2,0.4]
[1617241708247,9.6831,1931.7,1931.3,1.66179411]
[1617241708946,9.6831,1931.7,1931.2,1.66179411]
[1617241709146,9.6831,1931.7,1931.4,10.3476]
[1617241709147,0.14,1931.5,1931.4,10.3476]
[1617241709347,9.6831,1931.7,1931.4,12.31318076]
[1617241709546,9.6831,1931.7,1931.5,1.97447887]
[1617241709749,9.6831,1931.7,1931.6,1.67069615]
[1617241710166,9.6831,1931.7,1931.5,1.77878859]
[1617241710365,9.6831,1931.7,1931.5,9.53980859]
[1617241710567,9.6831,1931.7,1931.6,1.67069615]
[1617241710768,7.7044,1931.7,1931.6,1.67069615]
[1617241711166,11.2544,1931.7,1931.6,1.67069615]
[1617241711367,11.2544,1931.7,1931.6,1.62069615]
[1617241712586,11.2544,1931.7,1931.6,9.38166615]
[1617241713186,11.2544,1931.7,1931.6,14.39166615]
[1617241713790,9.4154,1931.7,1931.6,13.83338073]
[1617241714195,9.4154,1931.7,1931.6,14.49338073]
[1617241714390,9.4154,1931.7,1931.6,22.52838073]
[1617241714591,9.4154,1931.7,1931.6,17.87338073]
[1617241714790,9.4154,1931.7,1931.6,20.59338073]
[1617241714991,9.4154,1931.7,1931.6,20.87338073]
[1617241715235,3.55,1931.7,1931.6,20.87338073]
[1617241715435,3.55,1931.7,1931.6,28.87338073]
[1617241715835,3.55,1931.7,1931.6,37.07417757]
[1617241716434,7.1,1931.7,1931.6,28.87338073]
[1617241716634,7.1,1931.7,1931.6,28.21338073]
[1617241716835,5.2619,1931.7,1931.6,28.62338073]
[1617241717034,5.2619,1931.7,1931.6,28.90338073]
[1617241717835,5.2619,1931.7,1931.6,20.62338073]
[1617241718238,5.2619,1931.7,1931.6,17.24338073]
[1617241718437,5.2619,1931.7,1931.6,16.83338073]
[1617241719039,14.229,1931.7,1931.6,11.82338073]
[1617241719240,14.229,1931.7,1931.6,1.06241073]
[1617241719837,14.229,1931.7,1931.5,0.10809244]
[1617241720241,14.619,1931.7,1931.5,0.10809244]
[1617241720462,14.229,1931.7,1931.5,0.10809244]
[1617241721463,17.779,1931.7,1931.5,0.10809244]
[1617241722063,17.779,1931.7,1931.5,7.86942244]
[1617241722264,17.779,1931.7,1931.6,5.01]
[1617241722867,15.8905,1931.7,1931.6,5.01]
[1617241725089,15.8905,1931.7,1931.5,5.11809244]
[1617241725915,14.0468,1931.7,1931.5,5.11809244]
[1617241726115,14.0468,1931.7,1931.6,7.76083]
[1617241726716,17.5968,1931.7,1931.6,7.76083]
[1617241726916,17.75913788,1931.7,1931.6,7.76083]
[1617241728942,15.91633788,1931.7,1931.6,7.76083]
[1617241731962,17.62343788,1931.7,1931.6,7.76083]
[1617241734889,15.78523788,1931.7,1931.6,7.76083]
[1617241737315,19.33523788,1931.7,1931.6,7.76083]
[1617241737915,17.49683788,1931.7,1931.6,7.76083]
[1617241738116,17.49683788,1931.7,1931.6,11.82083]
[1617241739544,17.49683788,1931.7,1931.6,7.76083]
[1617241740945,14.15503788,1931.7,1931.6,7.76083]
[1617241741149,14.15503788,1931.7,1931.6,8.15083]
[1617241741761,14.15503788,1931.7,1931.6,8.43083]
[1617241741964,14.15503788,1931.7,1931.6,12.01083]
[1617241742566,17.70503788,1931.7,1931.6,12.01083]
[1617241743195,17.70503788,1931.7,1931.6,11.34083]
[1617241743997,15.86483788,1931.7,1931.6,11.34083]
[1617241744999,15.86483788,1931.7,1931.6,11.62083]
[1617241745197,15.86483788,1931.7,1931.6,11.34083]
[1617241747013,14.02653788,1931.7,1931.6,11.74083]
[1617241747413,14.02653788,1931.7,1931.6,11.34083]
[1617241747817,17.57653788,1931.7,1931.6,11.34083]
[1617241750140,15.73463788,1931.7,1931.6,11.34083]
[1617241752963,17.44443788,1931.7,1931.6,11.34083]
[1617241753163,17.44443788,1931.7,1931.6,11.29083]
[1617241755589,17.44443788,1931.7,1931.6,7.71083]
[1617241756191,15.57123788,1931.7,1931.6,7.71083]
[1617241758220,19.12123788,1931.7,1931.6,7.71083]
[1617241759123,17.28373788,1931.7,1931.6,7.71083]
[1617241762143,15.44183788,1931.7,1931.6,7.71083]
[1617241762768,15.44183788,1931.7,1931.5,10.45566244]
[1617241763168,8.92308818,1931.6,1931.5,10.45566244]
[1617241763368,5.75,1931.6,1931.5,10.45566244]
[1617241765589,18.99183788,1931.7,1931.5,10.45566244]
[1617241766388,19.38183788,1931.7,1931.5,10.45566244]
[1617241766988,18.99183788,1931.7,1931.5,10.45566244]
[1617241768616,22.54183788,1931.7,1931.5,10.45566244]
[1617241773365,22.70417997,1931.7,1931.5,10.45566244]
[1617241773966,26.25417997,1931.7,1931.5,10.45566244]
[1617241774167,26.25417997,1931.7,1931.5,0.10809244]
[1617241776414,5.55,1931.6,1931.5,0.10809244]
[1617241776814,8.89047173,1931.6,1931.5,0.10809244]
[1617241777015,5.95,1931.6,1931.5,0.10809244]
[1617241777220,26.25417997,1931.7,1931.5,5.39809244]
[1617241777417,26.25417997,1931.7,1931.6,5.332]
[1617241777618,26.25417997,1931.7,1931.6,6.21]
[1617241777816,27.80777915,1931.7,1931.6,15.5387]
[1617241778015,27.80777915,1931.7,1931.6,18.5987]
[1617241778216,27.80777915,1931.7,1931.6,19.3137]
[1617241778418,27.80777915,1931.7,1931.6,27.07266]
[1617241779019,27.80777915,1931.7,1931.6,35.27345684]
[1617241779217,31.35777915,1931.7,1931.6,27.07266]
[1617241779418,31.35777915,1931.7,1931.6,35.27345684]
[1617241779618,31.35777915,1931.7,1931.6,27.07266]
[1617241780020,31.35777915,1931.7,1931.6,30.07266]
[1617241780222,29.51937915,1931.7,1931.6,30.03766]
[1617241780419,29.51937915,1931.7,1931.6,38.23845684]
[1617241781051,29.46937915,1931.7,1931.6,38.23845684]
[1617241782248,29.46937915,1931.7,1931.6,30.03766]
[1617241783051,29.46937915,1931.7,1931.6,38.23845684]
[1617241783251,27.62647915,1931.7,1931.6,30.07266]
[1617241783668,27.62647915,1931.7,1931.6,38.27345684]
[1617241783866,27.62647915,1931.7,1931.6,46.27345684]
[1617241784268,31.17647915,1931.7,1931.6,48.34192644]
[1617241785269,20.83489915,1931.7,1931.6,32.54845684]
[1617241785670,20.83489915,1931.7,1931.6,24.74766]
[1617241786100,20.83489915,1931.7,1931.6,25.02766]
[1617241786301,18.99449915,1931.7,1931.6,24.62766]
[1617241786700,18.99449915,1931.7,1931.6,25.00766]
[1617241789332,17.15349915,1931.7,1931.6,25.00766]
[1617241789533,20.70349915,1931.7,1931.6,25.00766]
[1617241790331,20.70349915,1931.7,1931.6,33.00766]
[1617241790531,20.70349915,1931.7,1931.6,25.00766]
[1617241791377,20.70349915,1931.7,1931.6,33.00766]
[1617241792378,18.85839915,1931.7,1931.6,25.00766]
[1617241792578,18.85839915,1931.7,1931.6,33.00766]
[1617241794584,22.40839915,1931.7,1931.6,33.00766]
[1617241795484,20.56979915,1931.7,1931.6,33.00766]
[1617241798309,18.72729915,1931.7,1931.6,33.00766]
[1617241799936,22.27729915,1931.7,1931.6,33.00766]
[1617241801339,20.43909915,1931.7,1931.6,33.00766]
[1617241801742,20.43909915,1931.7,1931.6,41.20845684]
[1617241802159,20.43909915,1931.7,1931.6,33.00766]
[1617241802559,20.43909915,1931.7,1931.6,41.20845684]
[1617241802759,20.43909915,1931.7,1931.6,42.43915684]
[1617241803159,4.92697915,1931.7,1931.6,42.43915684]
[1617241803360,10.60135418,1932.1,1931.7,12.6]
[1617241803561,10.60135418,1932.1,1932.0,3.63066706]
[1617241803763,10.60135418,1932.1,1932.0,10.58626706]
[1617241803960,10.60135418,1932.1,1932.0,22.46626706]
[1617241804359,8.76165418,1932.1,1932.0,22.46626706]
[1617241804993,12.31165418,1932.1,1932.0,30.22189706]
[1617241805192,12.31165418,1932.1,1932.0,38.4226939]
[1617241805791,11.31165418,1932.1,1932.0,38.4226939]
[1617241806394,11.31165418,1932.1,1932.0,30.0226939]
[1617241806794,11.31165418,1932.1,1932.0,30.4126939]
[1617241806993,11.31165418,1932.1,1932.0,30.4406939]
[1617241807223,8.5591,1932.2,1932.0,30.4406939]
[1617241807224,8.5591,1932.2,1932.1,20.01662094]
[1617241807425,8.5591,1932.2,1932.1,37.94106434]
[1617241807426,6.7132,1932.2,1932.1,37.94106434]
[1617241807623,6.7132,1932.2,1932.1,45.1350434]
[1617241807824,26.05,1933.2,1932.1,53.2041334]
[1617241807825,1.55231295,1933.0,1932.1,53.2041334]
[1617241808026,1.55231295,1933.0,1932.7,4.28679]
[1617241808224,0.14,1932.9,1932.7,4.28679]
[1617241808423,0.14,1932.9,1932.8,0.336]
[1617241808625,1.55231295,1933.0,1932.8,2.13790313]
[1617241808823,0.14,1933.0,1932.9,3.45768705]
[1617241809624,0.14,1933.0,1932.9,11.21204705]
[1617241810238,3.69,1933.0,1932.9,11.21204705]
[1617241810437,1.8498,1933.0,1932.9,11.21204705]
[1617241810637,1.8498,1933.0,1932.9,3.45768705]
[1617241810838,0.8498,1933.0,1932.9,3.45768705]
[1617241812041,0.8498,1933.0,1932.9,0.20587213]
[1617241812660,10.3898,1933.0,1932.9,0.20587213]
[1617241813261,0.8498,1933.0,1932.9,0.20587213]
[1617241813460,4.94371426,1933.1,1932.9,0.20587213]
[1617241813661,4.80371426,1933.1,1932.9,0.20587213]
[1617241814264,4.80371426,1933.1,1932.9,5.21587213]
[1617241814461,4.80371426,1933.1,1932.9,12.97066213]
[1617241814661,4.80371426,1933.1,1932.9,13.64066213]
[1617241815690,8.35371426,1933.1,1932.9,13.64066213]
[1617241815889,7.35371426,1933.1,1932.9,13.25066213]
[1617241816491,5.51391426,1933.1,1932.9,13.65066213]
[1617241817291,5.51391426,1933.1,1933.0,0.39]
[1617241817712,5.51391426,1933.1,1933.0,5.4]
[1617241818514,5.51391426,1933.1,1933.0,12.76439]
[1617241818719,5.51391426,1933.1,1933.0,16.28439]
[1617241819313,3.67401426,1933.1,1933.0,16.28439]
[1617241820738,6.22401426,1933.1,1933.0,16.28439]
[1617241821339,6.38623877,1933.1,1933.0,16.28439]
[1617241822140,6.38623877,1933.1,1933.0,16.66439]
[1617241822339,4.54663877,1933.1,1933.0,16.66439]
[1617241823164,4.54663877,1933.1,1933.0,16.28439]
[1617241824361,4.54663877,1933.1,1933.0,16.67439]
[1617241825364,2.70023877,1933.1,1933.0,16.67439]
[1617241825788,1.70023877,1933.1,1933.0,16.28439]
[1617241825987,5.25023877,1933.1,1933.0,16.28439]
[1617241828415,3.41133877,1933.1,1933.0,16.69439]
[1617241828816,3.41133877,1933.1,1933.0,16.97439]
[1617241829216,3.41133877,1933.1,1933.0,16.69439]
[1617241829618,3.41133877,1933.1,1933.0,16.28439]
[1617241830837,35.615169,1933.0,1932.9,10.54485213]
[1617241831037,39.165169,1933.0,1932.9,10.54485213]
[1617241831437,37.327969,1933.0,1932.9,10.54485213]
[1617241833659,37.327969,1933.0,1932.9,15.55485213]
[1617241834460,35.488069,1933.0,1932.9,15.55485213]
[1617241834662,35.488069,1933.0,1932.9,19.03485213]
[1617241835060,35.488069,1933.0,1932.9,19.43485213]
[1617241835460,35.488069,1933.0,1932.9,19.03485213]
[1617241835860,34.488069,1933.0,1932.9,19.03485213]
[1617241836318,38.038069,1933.0,1932.9,19.43485213]
[1617241836918,38.038069,1933.0,1932.9,19.71485213]
[1617241837118,38.038069,1933.0,1932.9,19.31485213]
[1617241837520,36.198469,1933.0,1932.9,19.31485213]
[1617241838821,36.198469,1933.0,1932.9,19.70485213]
[1617241840426,34.354869,1933.0,1932.9,19.70485213]
[1617241840827,33.354869,1933.0,1932.9,19.70485213]
[1617241841636,36.904869,1933.0,1932.9,19.70485213]
[1617241843543,35.066969,1933.0,1932.9,19.70485213]
[1617241845864,33.91732127,1933.0,1932.9,28.95236198]
[1617241846487,32.07872127,1933.0,1932.9,28.95236198]
[1617241846887,35.62872127,1933.0,1932.9,28.95236198]
[1617241847891,34.00637487,1933.0,1932.9,29.87236198]
[1617241848092,7.36858454,1933.0,1932.9,65.17315882]
[1617241848296,25.65,1933.2,1933.1,25.05]
[1617241848297,22.89464877,1933.2,1933.1,25.05]
[1617241848492,5.23307158,1933.2,1933.1,38.35979]
[1617241848694,1.0,1934.9,1933.6,15.18956376]
[1617241848894,1.0,1934.9,1933.8,3.55993782]
[1617241848895,1.55167064,1934.8,1933.8,3.55993782]
[1617241849123,1.55167064,1934.8,1933.8,10.10993782]
[1617241849326,1.55167064,1934.8,1934.2,0.4]
[1617241849526,17.5452,1934.3,1934.2,10.94664808]
[1617241849724,17.5452,1934.3,1934.2,14.28064808]
[1617241850323,17.5452,1934.3,1934.2,30.48144492]
[1617241850324,13.1209,1934.3,1934.2,30.48144492]
[1617241850522,5.5717536,1934.3,1934.2,22.28064808]
[1617241850722,1.0,1934.9,1934.4,4.04884424]
[1617241850927,2.55,1934.7,1934.6,0.597]
[1617241851121,2.55,1934.7,1934.6,5.607]
[1617241851322,2.55,1934.7,1934.6,9.16503456]
[1617241851941,2.55,1934.7,1934.6,12.16503456]
[1617241852142,6.1,1934.7,1934.6,12.16503456]
[1617241852342,6.1,1934.7,1934.6,14.62503456]
[1617241852543,4.2597,1934.7,1934.6,15.00503456]
[1617241852943,4.2597,1934.7,1934.6,15.12784645]
[1617241853547,4.2597,1934.7,1934.6,23.32864329]
[1617241853745,14.2,1935.0,1934.7,8.0]
[1617241853947,2.0980254,1935.5,1935.0,7.8]
[1617241854145,2.0980254,1935.5,1935.1,3.63441836]
[1617241854146,0.14,1935.3,1935.1,3.63441836]
[1617241854370,2.2380254,1935.5,1935.1,3.63441836]
[1617241854570,2.2380254,1935.5,1935.2,3.0]
[1617241854769,2.2380254,1935.5,1935.0,0.09406894]
[1617241854972,6.53,1935.4,1934.9,1.92441836]
[1617241855171,0.38,1935.4,1935.3,3.0]
[1617241855371,2.2380254,1935.5,1935.3,3.0]
[1617241855571,0.7886254,1935.5,1935.3,3.0]
[1617241856770,3.97202291,1935.7,1935.3,3.0]
[1617241856990,0.14,1935.6,1935.3,3.0]
[1617241857191,3.69,1935.6,1935.3,3.0]
[1617241857391,3.19,1935.6,1935.3,3.0]
[1617241857592,3.33,1935.6,1935.3,3.38]
[1617241857991,3.33,1935.6,1935.5,0.20107838]
[1617241858192,16.18,1935.6,1935.5,0.20107838]
[1617241858796,16.59,1935.6,1935.3,2.83107838]
[1617241859622,0.14,1935.5,1935.0,8.15562]
[1617241859824,0.14,1935.5,1935.3,22.0]
[1617241861223,0.14,1935.5,1935.3,25.3]
[1617241861625,4.74167064,1935.6,1935.3,25.71]
[1617241861825,4.74167064,1935.6,1935.3,25.69]
[1617241861826,2.19,1935.6,1935.3,25.69]
[1617241862239,2.19,1935.6,1935.3,25.3]
[1617241862441,2.9323869,1935.5,1935.3,25.3]
[1617241862843,5.74,1935.6,1935.3,25.3]
[1617241863042,11.14,1935.6,1935.5,0.19255002]
[1617241864242,9.42506,1935.6,1935.5,0.19255002]
[1617241864442,3.99455,1935.6,1935.5,0.19255002]
[1617241866990,11.44455,1935.6,1935.5,0.14255002]
[1617241867591,11.60656079,1935.6,1935.5,0.14255002]
[1617241867794,6.65656079,1935.6,1935.5,0.14255002]
[1617241868892,7.04656079,1935.6,1935.5,0.14255002]
[1617241869091,15.99656079,1935.6,1935.5,0.14255002]
[1617241869692,15.97036079,1935.6,1935.5,0.14255002]
[1617241869893,15.58036079,1935.6,1935.5,0.14255002]
[1617241870317,6.63036079,1935.6,1935.5,0.14255002]
[1617241871922,5.63036079,1935.6,1935.5,0.14255002]
[1617241872941,20.18036079,1935.6,1935.5,0.14255002]
[1617241873745,18.34116079,1935.6,1935.5,0.14255002]
[1617241876766,15.49986079,1935.6,1935.5,0.14255002]
[1617241876965,15.49986079,1935.6,1935.5,0.53255002]
[1617241877366,15.49986079,1935.6,1935.5,0.14255002]
[1617241878192,19.04986079,1935.6,1935.5,0.14255002]
[1617241879592,17.21186079,1935.6,1935.5,0.14255002]
[1617241879995,17.61186079,1935.6,1935.5,0.14255002]
[1617241880635,17.21186079,1935.6,1935.5,0.14255002]
[1617241880836,24.95776079,1935.6,1935.5,0.14255002]
[1617241881838,23.95776079,1935.6,1935.5,0.14255002]
[1617241882043,23.96383776,1935.6,1935.5,0.14255002]
[1617241882840,22.08693776,1935.6,1935.5,0.80255002]
[1617241883041,14.34103776,1935.6,1935.5,0.80255002]
[1617241883441,17.89103776,1935.6,1935.5,0.80255002]
[1617241883842,17.89103776,1935.6,1935.5,0.14255002]
[1617241885863,16.45073776,1935.6,1935.5,0.14255002]
[1617241886467,16.05073776,1935.6,1935.5,0.14255002]
[1617241886664,23.79633776,1935.6,1935.5,0.14255002]
[1617241886864,22.79633776,1935.6,1935.5,0.14255002]
[1617241887265,22.79633776,1935.6,1935.5,0.44255002]
[1617241888267,23.17633776,1935.6,1935.5,0.44255002]
[1617241888493,22.79633776,1935.6,1935.5,0.44255002]
[1617241888697,24.50283776,1935.6,1935.5,0.44255002]
[1617241889295,24.88283776,1935.6,1935.5,0.44255002]
[1617241890697,24.50283776,1935.6,1935.5,0.44255002]
[1617241891115,24.90283776,1935.6,1935.5,0.44255002]
[1617241891717,23.06333776,1935.6,1935.5,0.44255002]
[1617241891917,21.66333776,1935.6,1935.5,0.44255002]
[1617241893939,25.21333776,1935.6,1935.5,0.44255002]
[1617241894741,23.37333776,1935.6,1935.5,0.44255002]
[1617241896985,22.37333776,1935.6,1935.5,0.44255002]
[1617241897788,20.53513776,1935.6,1935.5,0.44255002]
[1617241897989,20.93513776,1935.6,1935.5,0.44255002]
[1617241898790,30.6868084,1935.6,1935.5,0.44255002]
[1617241898991,30.6868084,1935.6,1935.5,0.3]
[1617241899191,34.2368084,1935.6,1935.5,0.3]
[1617241899593,34.2368084,1935.6,1935.3,22.0]
[1617241899795,42.0147,1935.4,1935.3,20.0780597]
[1617241899993,42.0147,1935.4,1934.9,3.0]
[1617241899994,0.14,1935.2,1934.9,3.0]
[1617241900194,5.01,1935.1,1934.9,3.0]
[1617241900393,18.20047056,1935.0,1934.9,2.93]
[1617241900593,25.57147056,1935.0,1934.9,2.93]
[1617241900798,25.57147056,1935.0,1934.0,31.39871927]
[1617241900799,7.74945,1934.8,1934.0,31.39871927]
[1617241900993,7.74945,1934.8,1934.2,0.447]
[1617241900994,0.41,1934.6,1934.2,0.447]
[1617241901193,0.23406894,1934.7,1934.2,0.447]
[1617241901194,0.61406894,1934.7,1934.2,0.447]
[1617241901392,0.52,1934.7,1934.2,0.447]
[1617241901826,5.61791014,1934.9,1934.2,0.447]
[1617241902027,0.14,1934.7,1934.4,0.4]
[1617241903226,0.14,1934.7,1934.6,0.17905533]
[1617241903428,1.55167064,1934.8,1934.6,0.17905533]
[1617241904245,12.85110064,1934.8,1934.6,0.17905533]
[1617241904647,15.3237588,1934.7,1934.6,0.17905533]
[1617241905246,22.9292588,1934.7,1934.6,0.17905533]
[1617241905648,33.2635888,1934.7,1934.6,0.17905533]
[1617241905847,34.81525944,1934.7,1934.6,0.17905533]
[1617241906877,9.15717064,1934.7,1934.6,0.17905533]
[1617241907077,1.55167064,1934.7,1934.6,0.17905533]
[1617241907876,2.55,1934.8,1934.6,0.17905533]
[1617241908278,1.69167064,1934.9,1934.6,0.17905533]
[1617241908279,0.056,1934.9,1934.6,0.17905533]
[1617241908582,0.056,1934.9,1934.7,0.41]
[1617241908977,0.056,1934.9,1934.6,0.17905533]
[1617241909179,0.056,1934.9,1934.6,0.43105533]
[1617241909623,3.606,1934.9,1934.6,0.17905533]
[1617241909823,3.556,1934.9,1934.6,0.17905533]
[1617241910023,3.556,1934.9,1934.6,0.12905533]
[1617241911624,3.556,1934.9,1934.6,0.38105533]
[1617241913025,2.556,1934.9,1934.6,0.38105533]
[1617241913426,2.956,1934.9,1934.6,0.12905533]
[1617241914225,2.556,1934.9,1934.6,0.12905533]
[1617241914626,6.106,1934.9,1934.6,0.12905533]
[1617241915050,6.106,1934.9,1934.3,10.74387]
[1617241915051,17.79,1934.8,1934.3,10.74387]
[1617241915850,15.0471,1934.8,1934.7,0.16944754]
[1617241916049,14.6571,1934.8,1934.7,0.16944754]
[1617241916249,6.106,1934.9,1934.7,0.16944754]
[1617241917867,5.106,1934.9,1934.7,0.16944754]
[1617241918670,5.106,1934.9,1934.7,0.11944754]
[1617241919869,8.656,1934.9,1934.7,0.11944754]
[1617241920094,8.656,1934.9,1934.8,0.4]
[1617241920694,8.656,1934.9,1934.7,0.39944754]
[1617241920893,8.656,1934.9,1934.7,0.79944754]
[1617241921094,8.656,1934.9,1934.7,0.51944754]